bitfinex/quotes_SOLUSD_20250829
["timestamp","ask_amount","ask_price","bid_price","bid_amount"]
[1756435751743,6.8407996,216.35,216.34,1e-08]
[1756435751961,11.46293965,216.35,216.34,1e-08]
[1756435752143,12.16293965,216.35,216.34,1e-08]
[1756435752343,4.62214005,216.35,216.34,1e-08]
[1756435753034,4.62149921,216.38,216.34,0.69000001]
[1756435753241,4.62149921,216.38,216.35,0.69]
[1756435753545,4.62149921,216.38,216.34,6.84079961]
[1756435753755,4.62149921,216.38,216.34,7.53079961]
[1756435753954,11.46272601,216.36,216.34,1e-08]
[1756435754154,45.3007996,216.35,216.34,1e-08]
[1756435754345,46.0007996,216.35,216.34,1e-08]
[1756435754740,39.16,216.35,216.34,1e-08]
[1756435754938,45.3007996,216.35,216.34,1e-08]
[1756435755157,13.59559401,216.34,216.27,0.03]
[1756435755364,6.8407996,216.28,216.27,0.03]
[1756435755540,38.48,216.28,216.27,0.03]
[1756435755740,45.3207996,216.28,216.27,0.03]
[1756435755975,49.94443562,216.28,216.27,0.03]
[1756435756260,43.10363602,216.28,216.27,0.03]
[1756435756454,49.94443562,216.28,216.27,0.03]
[1756435757763,43.06363602,216.28,216.27,0.03]
[1756435757958,43.06363602,216.28,216.27,0.72]
[1756435758137,4.62363602,216.28,216.27,0.72]
[1756435758466,43.04363602,216.28,216.27,0.72]
[1756435758639,43.04363602,216.28,216.27,0.03]
[1756435759239,4.62192641,216.36,216.27,7.5607996]
[1756435759464,45.3607996,216.35,216.29,6.8407996]
[1756435759841,6.8407996,216.34,216.28,7.5307996]
[1756435760046,4.62256737,216.33,216.29,0.69]
[1756435760249,23.0197854,216.33,216.27,6.8707996]
[1756435760548,6.8407996,216.31,216.27,0.03]
[1756435761049,38.52,216.32,216.27,0.03]
[1756435761050,6.8407996,216.32,216.27,0.03]
[1756435761242,38.5,216.31,216.29,6.8407996]
[1756435761439,38.5,216.31,216.29,0.69]
[1756435761658,38.5,216.31,216.27,0.03]
[1756435761847,0.7,216.3,216.27,1e-08]
[1756435762046,4.62384981,216.27,216.24,0.03]
[1756435762255,11.46464941,216.27,216.24,0.03]
[1756435762565,6.8407996,216.28,216.24,0.72]
[1756435762768,11.46451411,216.28,216.24,0.72]
[1756435762952,6.8407996,216.26,216.24,0.72]
[1756435763351,6.8407996,216.32,216.25,7.5307996]
[1756435763553,11.46336697,216.33,216.27,6.8407996]
[1756435763971,11.46336697,216.33,216.25,0.69]
[1756435764284,4.62256737,216.33,216.28,6.8407996]
[1756435764567,4.62256737,216.33,216.29,0.69]
[1756435764755,11.46336697,216.33,216.27,7.5307996]
[1756435764960,11.46336697,216.33,216.27,0.69]
[1756435765372,4.62256737,216.33,216.27,7.5307996]
[1756435766048,4.62192641,216.36,216.31,6.8407996]
[1756435766245,4.62169144,216.38,216.34,6.8407996]
[1756435766443,38.68,216.42,216.36,6.8407996]
[1756435766755,61.69305724,216.42,216.36,6.8407996]
[1756435767180,61.69305724,216.42,216.35,0.69]
[1756435767348,0.06,216.38,216.35,0.69]
[1756435767549,0.06,216.38,216.36,7.5307996]
[1756435769782,0.06,216.38,216.37,6.8407996]
[1756435769979,0.06,216.38,216.37,7.5307996]
[1756435770686,0.06,216.38,216.37,6.8407996]
[1756435771673,0.06,216.38,216.36,6.8407996]
[1756435771978,0.06,216.38,216.36,7.5107996]
[1756435772377,0.06,216.38,216.37,0.67]
[1756435772560,0.06,216.38,216.33,7.5107996]
[1756435772879,6.9007996,216.38,216.33,0.67]
[1756435773369,4.68149921,216.38,216.34,0.67]
[1756435774382,0.06,216.38,216.34,0.67]
[1756435774582,0.06,216.38,216.36,6.8407996]
[1756435774754,0.06,216.38,216.35,0.67]
[1756435774953,0.06,216.38,216.36,6.8407996]
[1756435775155,0.06,216.38,216.37,6.8407996]
[1756435775561,0.06,216.38,216.36,6.8407996]
[1756435775881,0.06,216.38,216.37,7.5107996]
[1756435776190,0.06,216.38,216.37,21.39071675]
[1756435776567,4.67957777,216.47,216.39,0.28432314]
[1756435776759,4.67957777,216.47,216.45,6.8407996]
[1756435776959,0.06,216.47,216.46,6.8407996]
[1756435777388,0.06,216.47,216.44,6.8407996]
[1756435777555,0.06,216.47,216.43,7.5107996]
[1756435777970,0.06,216.47,216.44,6.8407996]
[1756435778759,0.06,216.47,216.44,7.5107996]
[1756435779484,0.06,216.47,216.44,6.8407996]
[1756435779687,0.06,216.47,216.45,7.5107996]
[1756435780166,0.06,216.47,216.45,0.67]
[1756435780369,0.06,216.47,216.45,7.5107996]
[1756435780581,0.06,216.47,216.45,6.8407996]
[1756435780884,0.06,216.47,216.44,6.8407996]
[1756435781078,0.06,216.47,216.45,6.8407996]
[1756435781288,0.06,216.5,216.49,39.87991715]
[1756435781582,0.06,216.5,216.49,32.8407996]
[1756435781794,0.06,216.5,216.49,33.5107996]
[1756435782158,0.06,216.5,216.49,0.67]
[1756435782571,0.06,216.5,216.49,7.5107996]
[1756435782770,0.06,216.5,216.49,6.8407996]
[1756435783162,0.06,216.5,216.49,7.5107996]
[1756435783368,0.06,216.5,216.47,6.8407996]
[1756435783763,0.06,216.5,216.46,26.95432314]
[1756435783971,0.06,216.5,216.47,0.28432314]
[1756435784693,0.06,216.5,216.46,0.67]
[1756435785267,0.06,216.5,216.42,0.28432314]
[1756435785472,0.06,216.5,216.45,26.0]
[1756435785676,6.9007996,216.5,216.42,0.14216157]
[1756435785879,6.8407996,216.47,216.41,7.5107996]
[1756435786572,11.46016397,216.48,216.42,6.8407996]
[1756435786780,0.68,216.49,216.43,6.8407996]
[1756435786781,7.5207996,216.49,216.43,6.8407996]
[1756435786979,6.8407996,216.49,216.43,7.5107996]
[1756435787184,6.8407996,216.47,216.41,7.12512274]
[1756435787393,6.8407996,216.47,216.41,26.28432314]
[1756435787575,0.68,216.49,216.41,33.12512274]
[1756435787773,6.8407996,216.48,216.41,33.12512274]
[1756435788200,6.8407996,216.45,216.4,0.67]
[1756435788375,6.8407996,216.44,216.37,15.5107996]
[1756435788576,4.62043154,216.43,216.37,41.5107996]
[1756435789506,4.62043154,216.43,216.38,6.8407996]
[1756435789671,4.62043154,216.43,216.39,0.67]
[1756435790585,4.67893816,216.5,216.4,0.67]
[1756435790788,4.67893816,216.5,216.44,6.8407996]
[1756435790789,5.35893816,216.5,216.44,6.8407996]
[1756435790998,5.35893816,216.5,216.45,6.8407996]
[1756435791191,0.68,216.49,216.45,6.8407996]
[1756435791578,6.8407996,216.46,216.39,6.8407996]
[1756435791903,6.8407996,216.42,216.36,0.67]
[1756435792205,6.8407996,216.4,216.34,7.5107996]
[1756435792502,6.8407996,216.4,216.35,0.28432314]
[1756435792804,4.62128564,216.39,216.35,0.95432314]
[1756435793009,6.8407996,216.39,216.33,6.8407996]
[1756435793307,6.8407996,216.39,216.32,7.5107996]
[1756435793882,6.8407996,216.39,216.33,6.8407996]
[1756435794199,11.46220186,216.39,216.33,6.8407996]
[1756435794709,6.8407996,216.38,216.33,8.0]
[1756435795004,6.8407996,216.38,216.34,0.67]
[1756435795499,6.8407996,216.39,216.34,0.67]
[1756435795700,6.8407996,216.4,216.34,7.5107996]
[1756435796206,6.8407996,216.4,216.34,12.13311023]
[1756435796706,6.8407996,216.41,216.35,7.5107996]
[1756435798010,6.8407996,216.42,216.36,7.5107996]
[1756435798188,4.62042948,216.44,216.38,6.8407996]
[1756435798389,6.8407996,216.43,216.37,7.5107996]
[1756435798594,6.8407996,216.42,216.37,0.67]
[1756435798791,6.8407996,216.42,216.36,87.5407996]
[1756435799380,5.30042948,216.44,216.36,87.5407996]
[1756435799579,6.8407996,216.42,216.36,87.5407996]
[1756435799818,6.8407996,216.42,216.37,0.67]
[1756435800022,6.8407996,216.42,216.38,0.67]
[1756435800305,6.8407996,216.42,216.36,92.1626999]
[1756435800306,6.8407996,216.43,216.39,0.65]
[1756435800610,6.8407996,216.42,216.37,80.7]
[1756435800819,7.5207996,216.42,216.37,80.7]
[1756435801111,6.8407996,216.38,216.37,80.7]
[1756435801410,4.17368742,216.38,216.33,80.7]
[1756435801721,0.68,216.44,216.36,4.20368742]
[1756435802005,0.68,216.44,216.37,4.82368742]
[1756435802006,4.17368742,216.43,216.37,4.82368742]
[1756435802415,49.84894442,216.47,216.36,85.35184134]
[1756435802416,4.17368742,216.45,216.38,4.17368742]
[1756435802586,26.0,216.48,216.36,85.35184134]
[1756435802587,4.61937125,216.48,216.43,4.17368742]
[1756435802783,0.06,216.49,216.44,4.17368742]
[1756435803095,4.23368742,216.49,216.44,0.65]
[1756435803298,6.90139886,216.49,216.44,0.65]
[1756435803500,12.20058688,216.49,216.43,6.84139886]
[1756435804587,12.20058688,216.49,216.44,6.84139886]
[1756435805214,5.35918802,216.49,216.44,6.84139886]
[1756435805722,12.20058688,216.49,216.43,6.84139886]
[1756435806302,5.35918802,216.49,216.44,6.84139886]
[1756435806620,0.06,216.49,216.48,6.84139886]
[1756435806916,0.06,216.49,216.46,6.84139886]
[1756435807814,0.06,216.49,216.48,6.84139886]
[1756435808203,0.06,216.49,216.48,7.49139886]
[1756435808716,0.06,216.49,216.45,0.65]
[1756435808897,0.06,216.49,216.47,6.84139886]
[1756435809330,0.06,216.49,216.46,7.49139886]
[1756435809636,0.06,216.49,216.47,7.49139886]
[1756435809838,0.06,216.49,216.44,0.65]
[1756435810049,0.06,216.49,216.46,6.84139886]
[1756435810517,0.06,216.49,216.45,15.49139886]
[1756435810940,0.06,216.49,216.45,7.49139886]
[1756435811238,26.06,216.49,216.46,6.84139886]
[1756435811434,30.6792539,216.49,216.45,7.49139886]
[1756435811743,0.06,216.49,216.48,6.84139886]
[1756435811921,0.06,216.49,216.47,6.84139886]
[1756435812117,26.06,216.49,216.47,6.84139886]
[1756435812318,0.06,216.49,216.46,0.65]
[1756435812522,6.84139886,216.47,216.4,0.65]
[1756435812730,6.84139886,216.42,216.37,0.65]
[1756435812939,6.84139886,216.42,216.38,0.65]
[1756435813129,6.84139886,216.42,216.39,0.65]
[1756435813642,11.4619453,216.43,216.39,0.65]
[1756435813942,4.62054644,216.43,216.39,0.65]
[1756435814419,6.84139886,216.43,216.39,0.65]
[1756435814626,11.46164537,216.44,216.39,0.65]
[1756435814840,12.14164537,216.44,216.38,6.84139886]
[1756435815209,7.52139886,216.44,216.38,6.84139886]
[1756435815418,32.84139886,216.46,216.4,6.84139886]
[1756435815618,26.0,216.47,216.42,6.84139886]
[1756435815820,6.90139886,216.49,216.43,7.49139886]
[1756435816121,0.06,216.49,216.44,6.84139886]
[1756435816323,6.90139886,216.49,216.43,6.84139886]
[1756435816513,0.06,216.49,216.44,7.49139886]
[1756435816749,0.06,216.49,216.45,0.65]
[1756435818125,6.90139886,216.49,216.45,0.65]
[1756435818323,0.06,216.49,216.45,0.65]
[1756435818653,6.90139886,216.49,216.45,0.65]
[1756435818940,0.06,216.49,216.47,6.84139886]
[1756435819134,0.06,216.49,216.46,88.19139886]
[1756435819312,6.84139886,216.48,216.46,80.7]
[1756435819514,0.74,216.49,216.46,80.7]
[1756435819515,0.06,216.49,216.46,80.7]
[1756435819841,6.84139886,216.48,216.46,80.7]
[1756435820355,7.52139886,216.47,216.46,80.7]
[1756435820521,6.84139886,216.47,216.46,80.7]
[1756435820842,26.0,216.44,216.38,0.65]
[1756435821030,6.84139886,216.42,216.39,0.65]
[1756435821213,6.84139886,216.43,216.4,0.65]
[1756435821417,6.84139886,216.43,216.42,0.03]
[1756435821931,38.28,216.47,216.42,7.52139886]
[1756435822134,38.28,216.47,216.43,7.49139886]
[1756435822346,38.28,216.47,216.44,0.65]
[1756435822812,26.0,216.48,216.44,0.65]
[1756435823020,0.06,216.49,216.46,6.84139886]
[1756435823235,0.06,216.49,216.47,0.65]
[1756435825141,0.06,216.49,216.46,6.84139886]
[1756435825346,0.06,216.49,216.45,0.65]
[1756435825347,0.06,216.49,216.47,6.84139886]
[1756435825531,0.06,216.49,216.48,7.49139886]
[1756435826315,0.06,216.49,216.44,81.1620218]
[1756435826517,0.06,216.49,216.44,81.35]
[1756435826743,0.06,216.49,216.44,88.19139886]
[1756435827022,0.06,216.49,216.45,6.84139886]
[1756435827359,0.06,216.49,216.44,6.84139886]
[1756435827524,0.06,216.49,216.45,6.84139886]
[1756435827932,0.06,216.49,216.46,0.65]
[1756435828133,0.06,216.49,216.44,6.84139886]
[1756435828337,0.06,216.49,216.47,0.65]
[1756435828731,0.06,216.49,216.48,0.65]
[1756435829048,0.06,216.49,216.46,0.65]
[1756435829540,0.06,216.49,216.47,0.65]
[1756435830564,0.06,216.49,216.48,0.72]
[1756435830750,0.06,216.49,216.48,7.56139886]
[1756435831054,0.06,216.49,216.45,5.33995653]
[1756435831236,0.06,216.49,216.46,0.72]
[1756435831743,0.06,216.49,216.47,0.72]
[1756435831953,0.06,216.49,216.46,0.72]
[1756435832430,0.06,216.49,216.45,8.7874164]
[1756435832431,0.06,216.49,216.47,0.72]
[1756435833455,0.06,216.49,216.46,8.78721681]
[1756435833765,0.06,216.49,216.48,18.76737702]
[1756435834077,4.22745987,216.49,216.43,0.72]
[1756435834247,4.16745987,216.44,216.43,1.00432314]
[1756435834756,4.16745987,216.45,216.43,1.00432314]
[1756435834958,4.16745987,216.45,216.44,0.72]
[1756435835142,0.06,216.49,216.45,0.28432314]
[1756435835350,0.06,216.49,216.48,0.28432314]
[1756435835660,0.06,216.53,216.52,13.87991715]
[1756435835830,0.06,216.55,216.54,39.87991715]
[1756435836038,0.06,216.55,216.54,44.50918546]
[1756435836227,0.06,216.55,216.54,45.22918546]
[1756435836828,0.06,216.55,216.54,53.22918546]
[1756435837032,0.06,216.64,216.55,13.87991715]
[1756435837238,0.06,216.64,216.6,4.45178301]
[1756435837466,0.06,216.64,216.6,7.11260553]
[1756435837639,0.06,216.64,216.6,7.83260553]
[1756435837962,0.06,216.64,216.6,12.4494107]
[1756435839428,0.06,216.64,216.6,26.50668522]
[1756435840035,0.06,216.64,216.6,64.76668522]
[1756435840233,0.06,216.64,216.6,72.76668522]
[1756435841264,0.06,216.64,216.6,58.7094107]
[1756435841556,0.06,216.64,216.6,12.61680517]
[1756435841753,0.06,216.64,216.6,46.40216157]
[1756435841954,7.55828239,216.61,216.51,13.59559401]
[1756435842258,7.49828239,216.6,216.54,6.82828239]
[1756435842466,6.82828239,216.6,216.54,6.82828239]
[1756435842641,6.82828239,216.59,216.55,38.26]
[1756435843163,6.82828239,216.59,216.55,38.98]
[1756435843534,6.82828239,216.59,216.55,43.59785252]
[1756435843766,6.82828239,216.6,216.55,42.87785252]
[1756435843939,6.82828239,216.59,216.55,38.26]
[1756435844659,7.49828239,216.59,216.55,38.26]
[1756435844867,7.49828239,216.59,216.55,46.26]
[1756435845243,6.82828239,216.59,216.55,46.26]
[1756435845965,6.82828239,216.59,216.53,6.82828239]
[1756435846142,6.82828239,216.55,216.5,0.72]
[1756435846459,6.82828239,216.55,216.51,38.24]
[1756435847172,6.82828239,216.55,216.51,38.52432314]
[1756435847359,6.82828239,216.55,216.51,0.28432314]
[1756435847540,4.61680517,216.6,216.47,0.28432314]
[1756435847740,6.82828239,216.55,216.51,0.72]
[1756435848969,6.82828239,216.54,216.51,8.0]
[1756435849277,6.82828239,216.59,216.53,0.28432314]
[1756435849842,6.82828239,216.58,216.53,0.28432314]
[1756435850043,6.82828239,216.58,216.53,5.62248319]
[1756435850249,6.82828239,216.56,216.53,0.28432314]
[1756435850470,6.82828239,216.56,216.52,38.24]
[1756435851670,6.82828239,216.57,216.53,0.72]
[1756435851845,6.82828239,216.57,216.52,38.24]
[1756435852049,6.82828239,216.55,216.52,38.24]
[1756435852240,7.49828239,216.55,216.52,38.24]
[1756435852441,7.49828239,216.55,216.5,4.61892463]
[1756435852646,6.82828239,216.53,216.5,81.42]
[1756435852871,6.82828239,216.53,216.5,119.66]
[1756435853083,6.82828239,216.54,216.5,119.66]
[1756435853282,6.82828239,216.55,216.51,0.72]
[1756435854150,6.82828239,216.54,216.51,0.72]
[1756435854348,6.82828239,216.54,216.5,80.7]
[1756435854555,6.82828239,216.54,216.51,38.24]
[1756435854748,0.67,216.56,216.51,38.24]
[1756435854976,6.82828239,216.53,216.51,38.24]
[1756435855171,0.67,216.59,216.52,0.72]
[1756435855473,6.82828239,216.55,216.51,46.24]
[1756435855674,6.82828239,216.54,216.51,46.24]
[1756435855870,6.82828239,216.56,216.52,0.72]
[1756435856450,6.82828239,216.55,216.51,131.55854358]
[1756435856652,0.06,216.61,216.55,26.0]
[1756435856865,0.06,216.61,216.56,38.32]
[1756435857278,6.82828239,216.59,216.55,38.36]
[1756435857453,7.49828239,216.58,216.55,38.36]
[1756435857654,6.82828239,216.6,216.54,0.28432314]
[1756435857848,6.82828239,216.59,216.55,0.72]
[1756435858061,6.82828239,216.56,216.54,0.28432314]
[1756435858964,0.06,216.55,216.54,0.28432314]
[1756435859790,7.55828239,216.55,216.54,8.0]
[1756435859971,7.55828239,216.55,216.5,38.37]
[1756435860173,0.67,216.54,216.5,0.03]
[1756435860363,6.82828239,216.51,216.5,0.03]
[1756435860888,12.10700669,216.51,216.5,0.03]
[1756435861091,12.10700669,216.51,216.47,0.03]
[1756435861382,6.82828239,216.48,216.47,0.03]
[1756435862382,0.72,216.55,216.47,1.03432314]
[1756435862568,0.06,216.55,216.47,7.86260553]
[1756435862764,6.82828239,216.51,216.47,0.75]
[1756435862972,0.66,216.54,216.47,8.03]
[1756435863283,6.82828239,216.49,216.47,8.03]
[1756435863580,6.82828239,216.48,216.47,8.03]
[1756435864773,6.82828239,216.52,216.47,13.36957777]
[1756435865081,6.82828239,216.52,216.47,12.64957777]
[1756435865256,4.67787234,216.55,216.47,13.36957777]
[1756435865257,6.82828239,216.51,216.47,13.36957777]
[1756435865674,0.72,216.55,216.47,12.64957777]
[1756435865981,6.82828239,216.54,216.48,1.00432314]
[1756435866181,6.82828239,216.54,216.49,0.72]
[1756435866477,6.82828239,216.54,216.5,0.72]
[1756435866680,6.82828239,216.53,216.48,39.34432314]
[1756435866875,6.82828239,216.53,216.49,5.339151]
[1756435867071,6.82828239,216.54,216.5,1.00432314]
[1756435867292,0.06,216.55,216.52,0.28432314]
[1756435867582,0.06,216.55,216.53,0.72]
[1756435868090,0.06,216.55,216.54,7.54828239]
[1756435868978,0.06,216.55,216.54,12.1663668]
[1756435869185,0.06,216.55,216.54,4.61808441]
[1756435869388,0.06,216.55,216.53,0.28432314]
[1756435869768,0.06,216.55,216.53,1.00432314]
[1756435870091,0.06,216.55,216.53,0.28432314]
[1756435870288,0.06,216.55,216.54,0.72]
[1756435870597,0.06,216.55,216.54,9.00432314]
[1756435871093,0.06,216.55,216.54,13.62240755]
[1756435872089,7.54828239,216.55,216.54,8.0]
[1756435872292,7.54828239,216.55,216.51,4.61870565]
[1756435872592,0.06,216.55,216.5,42.87891008]
[1756435872795,6.82828239,216.53,216.5,42.87891008]
[1756435872998,6.82828239,216.53,216.51,0.28432314]
[1756435873298,0.06,216.55,216.53,0.28432314]
[1756435873463,0.06,216.55,216.54,0.28432314]
[1756435874269,0.06,216.55,216.54,1.00432314]
[1756435874470,0.06,216.55,216.54,0.28432314]
[1756435875304,0.06,216.55,216.54,13.62240755]
[1756435875984,0.06,216.55,216.54,139.39068994]
[1756435876292,0.06,216.55,216.54,152.98628395]
[1756435878279,0.06,216.55,216.54,144.98628395]
[1756435878476,0.06,216.55,216.54,106.74628395]
[1756435878711,0.06,216.55,216.54,144.98628395]
[1756435878904,0.06,216.55,216.54,106.74628395]
[1756435879211,0.06,216.55,216.54,144.98628395]
[1756435879887,0.06,216.58,216.54,144.98628395]
[1756435879888,0.06,216.58,216.57,39.59559401]
[1756435880084,0.06,216.58,216.57,166.10994401]
[1756435880284,0.06,216.58,216.57,166.36819954]
[1756435881308,0.06,216.58,216.57,261.33005023]
[1756435881482,0.06,216.58,216.57,292.74176784]
[1756435881681,0.06,216.58,216.57,223.88432314]
[1756435881910,0.06,216.58,216.57,261.84]
[1756435882605,0.06,216.58,216.57,262.12432314]
[1756435882791,0.06,216.58,216.57,261.84]
[1756435884611,0.06,216.58,216.57,223.6]
[1756435884812,0.06,216.58,216.57,261.84]
[1756435885015,0.06,216.58,216.57,215.6]
[1756435885179,0.06,216.58,216.57,253.84]
[1756435885513,0.06,216.58,216.57,38.24]
[1756435885718,7.54828239,216.58,216.54,80.7]
[1756435885883,6.82828239,216.56,216.54,80.7]
[1756435886087,7.48828239,216.56,216.54,80.7]
[1756435886397,7.48828239,216.56,216.53,118.94]
[1756435886992,0.06,216.58,216.54,0.28432314]
[1756435887204,0.06,216.58,216.55,45.06828239]
[1756435887605,0.06,216.58,216.55,42.857706]
[1756435888089,0.06,216.58,216.55,50.857706]
[1756435889215,6.88828239,216.58,216.55,50.857706]
[1756435889422,6.88828239,216.58,216.55,46.24]
[1756435889619,6.82828239,216.57,216.55,46.24]
[1756435889991,6.82828239,216.57,216.55,50.85781546]
[1756435890313,0.06,216.58,216.56,7.83260553]
[1756435890500,0.06,216.58,216.57,45.06828239]
[1756435890814,0.06,216.58,216.57,46.02260553]
[1756435891008,0.06,216.58,216.57,126.72260553]
[1756435891219,0.06,216.58,216.57,131.34005023]
[1756435892394,0.06,216.58,216.53,1.850438]
[1756435892395,7.55828239,216.58,216.53,1.850438]
[1756435892633,6.82828239,216.57,216.54,38.89]
[1756435892922,6.82828239,216.56,216.55,0.14216157]
[1756435893125,6.88828239,216.58,216.55,0.14216157]
[1756435893329,6.88828239,216.58,216.56,38.22]
[1756435893620,6.82828239,216.57,216.56,38.50432314]
[1756435893826,6.82828239,216.57,216.56,38.22]
[1756435893990,0.06,216.58,216.56,38.22]
[1756435894195,6.88828239,216.58,216.56,38.22]
[1756435894389,6.82828239,216.57,216.56,38.50432314]
[1756435894826,6.88828239,216.58,216.56,38.50432314]
[1756435895113,7.49828239,216.57,216.5,0.03]
[1756435895317,6.82828239,216.56,216.52,0.14216157]
[1756435895650,6.88828239,216.58,216.54,0.28432314]
[1756435895798,6.82828239,216.57,216.55,38.22]
[1756435896412,7.49828239,216.56,216.5,4.64875329]
[1756435896614,6.82828239,216.53,216.51,38.22]
[1756435897422,6.82828239,216.55,216.52,4.61851099]
[1756435897611,6.82828239,216.54,216.5,4.64874917]
[1756435897922,6.82828239,216.53,216.51,38.22]
[1756435898217,6.82828239,216.54,216.51,46.22]
[1756435899210,6.82828239,216.53,216.51,8.0]
[1756435899405,6.82828239,216.53,216.52,38.22]
[1756435899722,5.28747583,216.57,216.52,38.22]
[1756435899903,6.82828239,216.55,216.52,38.22]
[1756435900103,6.82828239,216.54,216.52,38.22]
[1756435900512,6.82828239,216.53,216.51,8.0]
[1756435900698,21.0938764,216.52,216.47,0.03]
[1756435900903,6.82828239,216.48,216.47,0.03]
[1756435901523,7.49828239,216.48,216.47,0.03]
[1756435901906,25.71324077,216.48,216.47,0.03]
[1756435902105,32.54152316,216.48,216.47,0.03]
[1756435902727,25.71324077,216.48,216.47,0.03]
[1756435904929,7.49828239,216.48,216.47,0.03]
[1756435905501,32.54152316,216.48,216.47,0.03]
[1756435905925,34.39410416,216.48,216.47,0.03]
[1756435906110,72.63410416,216.48,216.47,0.03]
[1756435906842,27.56582177,216.48,216.47,0.03]
[1756435907020,25.71324077,216.48,216.47,0.03]
[1756435907916,63.95324077,216.48,216.47,0.03]
[1756435908515,25.71324077,216.48,216.47,0.03]
[1756435908713,63.95324077,216.48,216.47,0.03]
[1756435908940,45.06828239,216.48,216.47,0.03]
[1756435909118,6.82828239,216.48,216.47,0.03]
[1756435909434,32.82828239,216.48,216.47,0.03]
[1756435913209,37.44764676,216.48,216.47,0.03]
[1756435913413,32.54152316,216.48,216.47,0.03]
[1756435914412,34.39401816,216.48,216.47,0.03]
[1756435914634,39.59559401,216.46,216.45,0.03]
[1756435914840,39.59559401,216.43,216.42,0.03]
[1756435915140,46.4238764,216.43,216.42,0.03]
[1756435915434,1.852752,216.45,216.42,0.03]
[1756435915655,6.82828239,216.43,216.42,0.03]
[1756435920434,11.44871393,216.43,216.42,0.03]
[1756435920637,51.73430794,216.43,216.42,0.03]
[1756435921024,32.82828239,216.43,216.42,0.03]
[1756435921342,37.44871393,216.43,216.42,0.03]
[1756435922119,51.73430794,216.43,216.42,0.03]
[1756435922535,51.04430794,216.43,216.42,0.03]
[1756435923336,37.44871393,216.43,216.42,0.03]
[1756435923646,51.73430794,216.43,216.42,0.03]
[1756435923816,11.44871393,216.43,216.42,0.03]
[1756435924020,49.66871393,216.43,216.42,0.03]
[1756435924223,75.66871393,216.43,216.42,0.03]
[1756435924859,13.59559401,216.49,216.42,0.72]
[1756435925153,6.82828239,216.47,216.42,0.72]
[1756435925449,1.85258,216.48,216.43,6.82828239]
[1756435925636,6.82828239,216.49,216.44,0.69]
[1756435926028,6.82828239,216.49,216.43,6.82828239]
[1756435926228,6.82828239,216.49,216.44,0.69]
[1756435926433,6.82828239,216.49,216.45,0.69]
[1756435926626,6.82828239,216.48,216.46,0.69]
[1756435926848,6.82828239,216.48,216.47,0.69]
[1756435927349,42.83889467,216.51,216.47,0.69]
[1756435927554,6.82828239,216.5,216.47,0.69]
[1756435927740,6.82828239,216.48,216.45,8.0]
[1756435927925,6.82828239,216.48,216.42,0.72]
[1756435927926,13.59559401,216.45,216.42,0.03]
[1756435928124,6.82828239,216.43,216.42,0.03]
[1756435928754,21.1138764,216.43,216.42,0.03]
[1756435928940,25.73430794,216.43,216.42,0.03]
[1756435930153,51.73430794,216.43,216.42,0.03]
[1756435930329,25.73430794,216.43,216.42,0.03]
[1756435931028,18.90602555,216.43,216.42,0.03]
[1756435931250,25.73430794,216.43,216.42,0.03]
[1756435934240,13.59559401,216.42,216.41,0.03]
[1756435934445,58.6438764,216.42,216.41,0.03]
[1756435934640,63.95452144,216.42,216.41,0.03]
[1756435934953,63.95452144,216.42,216.4,0.03]
[1756435934954,20.4238764,216.41,216.4,0.03]
[1756435935462,13.59559401,216.4,216.39,0.03]
[1756435935642,20.4238764,216.4,216.39,0.03]
[1756435935833,21.1138764,216.4,216.39,0.03]
[1756435936359,46.4238764,216.37,216.36,0.03]